bitfinex/quotes_SOLUSD_20241213
["timestamp","ask_amount","ask_price","bid_price","bid_amount"]
[1734125348278,20.0,223.16,223.14,1.6397]
[1734125348473,22.3964,223.25,223.14,1.6397]
[1734125348785,11.1997,223.22,223.15,0.25098]
[1734125349075,11.1997,223.22,223.15,24.027864]
[1734125349673,20.0,223.22,223.15,24.027864]
[1734125350182,22.3964,223.25,223.15,24.027864]
[1734125353968,22.3964,223.25,223.14,1.6397]
[1734125358170,22.3964,223.25,223.15,24.027864]
[1734125358371,22.3964,223.25,223.16,6.501]
[1734125371580,11.1972,223.27,223.17,25.566264]
[1734125374141,11.1972,223.27,223.19,1.67799]
[1734125374425,11.1972,223.27,223.2,23.902374]
[1734125374599,11.1972,223.27,223.21,0.12549]
[1734125375408,11.1951,223.31,223.21,0.12549]
[1734125380794,11.1951,223.31,223.22,6.117]
[1734125397507,11.1951,223.31,223.22,36.117]
[1734125398102,20.0,223.28,223.22,36.117]
[1734125398912,20.0,223.28,223.22,6.117]
[1734125399517,20.0,223.28,223.23,0.25098]
[1734125399716,11.1937,223.34,223.25,0.25098]
[1734125399921,22.3827,223.39,223.28,1.5433]
[1734125400224,11.1922,223.37,223.28,1.5433]
[1734125401218,20.0,223.34,223.28,1.5433]
[1734125405027,11.1922,223.37,223.28,1.5433]
[1734125405435,20.0,223.36,223.28,1.5433]
[1734125406602,31.1928,223.36,223.28,31.5433]
[1734125407709,22.3827,223.39,223.28,31.5433]
[1734125407908,20.0,223.36,223.28,1.5433]
[1734125409239,31.1929,223.36,223.28,1.5433]
[1734125412611,53.5782,223.36,223.26,6.6597]
[1734125418032,33.5782,223.36,223.26,6.6597]
[1734125418361,22.3827,223.39,223.26,6.6597]
[1734125418362,22.3827,223.39,223.27,0.25098]
[1734125418526,22.3827,223.39,223.28,1.6341]
[1734125419643,20.0,223.36,223.28,1.6341]
[1734125420563,31.193,223.36,223.28,1.6341]
[1734125421857,53.5783,223.36,223.28,1.6341]
[1734125429241,11.193,223.36,223.28,1.6341]
[1734125430368,22.3827,223.39,223.28,1.6341]
[1734125430667,20.0,223.36,223.28,1.6341]
[1734125431362,31.1931,223.36,223.28,1.6341]
[1734125436070,11.1906,223.4,223.3,6.4944]
[1734125436271,11.1906,223.4,223.31,0.25098]
[1734125436469,11.1906,223.4,223.33,0.25098]
[1734125437344,4.57733833,223.46,223.33,0.25098]
[1734125437570,31.1881,223.45,223.33,0.25098]
[1734125439366,53.5644,223.45,223.33,0.25098]
[1734125450067,11.1881,223.45,223.35,0.25098]
[1734125450681,11.1881,223.45,223.36,8.0302]
[1734125450863,11.1881,223.45,223.37,0.25098]
[1734125451704,11.1881,223.45,223.37,24.027864]
[1734125452073,3.48241093,223.49,223.37,24.027864]
[1734125452271,22.3709,223.51,223.37,24.027864]
[1734125452272,11.1866,223.48,223.37,24.027864]
[1734125452700,20.0,223.45,223.37,54.027864]
[1734125453075,20.0,223.45,223.37,24.027864]
[1734125455426,11.1881,223.45,223.37,24.027864]
[1734125455997,11.1881,223.45,223.37,54.027864]
[1734125457315,20.0,223.42,223.37,30.0]
[1734125457625,20.0,223.42,223.36,8.0302]
[1734125458400,20.0,223.44,223.36,8.0302]
[1734125458593,53.5659,223.44,223.36,8.0302]
[1734125460013,31.1886,223.44,223.36,8.0302]
[1734125462115,11.1886,223.44,223.37,0.25098]
[1734125462912,2.69875225,223.5,223.37,0.25098]
[1734125462913,0.90021291,223.5,223.37,0.25098]
[1734125463229,11.1869,223.48,223.39,0.12549]
[1734125463399,11.1869,223.48,223.4,1.6012]
[1734125463603,11.1869,223.48,223.42,6.2836]
[1734125463802,11.185,223.52,223.43,0.25098]
[1734125465717,11.185,223.52,223.42,6.2836]
[1734125465718,20.0,223.49,223.42,6.2836]
[1734125467317,22.3673,223.54,223.42,6.2836]
[1734125467318,20.0,223.45,223.42,6.2836]
[1734125470309,11.1866,223.48,223.42,6.2836]
[1734125471739,23.776884,223.53,223.42,6.2836]
[1734125472519,33.5509,223.54,223.42,6.2836]
[1734125473037,11.1836,223.54,223.43,0.25098]
[1734125476134,11.1836,223.54,223.43,30.25098]
[1734125477524,11.1836,223.54,223.43,0.25098]
[1734125480655,11.1836,223.54,223.43,30.25098]
[1734125481214,11.1836,223.54,223.45,0.12549]
[1734125481418,11.1836,223.54,223.45,0.25098]
[1734125482339,11.1836,223.54,223.45,30.25098]
[1734125483118,1.80640761,223.6,223.45,30.25098]
[1734125483319,11.1811,223.59,223.45,30.25098]
[1734125483630,20.0,223.56,223.47,0.25098]
[1734125484921,20.0,223.56,223.47,30.25098]
[1734125485139,20.0,223.59,223.47,30.25098]
[1734125485339,20.0,223.58,223.47,30.25098]
[1734125486132,20.0,223.58,223.47,0.25098]
[1734125486334,11.1821,223.57,223.47,0.25098]
[1734125486637,11.1821,223.57,223.47,8.65627998]
[1734125486827,11.1821,223.57,223.49,0.12549]
[1734125487142,2.73113141,223.63,223.49,0.25098]
[1734125487441,23.776884,223.62,223.49,0.25098]
[1734125487829,23.776884,223.62,223.49,30.25098]
[1734125488220,11.1816,223.58,223.49,0.25098]
[1734125489730,11.1816,223.58,223.51,0.12549]
[1734125489919,11.1816,223.58,223.51,0.25098]
[1734125491327,23.776884,223.64,223.51,0.25098]
[1734125491725,20.0,223.61,223.51,30.25098]
[1734125493039,31.1806,223.61,223.51,30.25098]
[1734125493750,11.1785,223.65,223.53,0.25098]
[1734125494739,11.1785,223.65,223.53,30.25098]
[1734125495127,11.1785,223.65,223.53,0.25098]
[1734125498141,11.1785,223.65,223.53,30.25098]
[1734125498331,11.1785,223.65,223.53,0.25098]
[1734125498540,11.1785,223.65,223.55,0.25098]
[1734125498852,11.1785,223.65,223.57,0.25098]
[1734125500256,22.888024,223.69,223.57,0.25098]
[1734125500257,34.064624,223.69,223.57,0.25098]
[1734125501246,34.064624,223.69,223.57,30.25098]
[1734125501827,31.1779,223.66,223.57,30.0]
[1734125502051,31.1779,223.66,223.56,1.6142]
[1734125503252,31.1779,223.66,223.57,0.25098]
[1734125503547,31.1779,223.66,223.57,30.25098]
[1734125505641,31.1779,223.66,223.59,0.25098]
[1734125505954,20.0,223.67,223.59,0.25098]
[1734125506451,20.0,223.67,223.61,0.25098]
[1734125506756,0.535224,223.69,223.61,0.25098]
[1734125507163,20.0,223.67,223.61,0.25098]
[1734125507466,0.535224,223.69,223.61,0.25098]
[1734125510540,0.535224,223.69,223.61,30.25098]
[1734125511240,0.535224,223.69,223.62,6.1531]
[1734125512161,0.535224,223.69,223.62,36.1531]
[1734125513062,0.535224,223.69,223.62,6.1531]
[1734125517268,0.535224,223.69,223.62,36.1531]
[1734125521458,0.535224,223.69,223.62,6.1531]
[1734125522857,0.535224,223.69,223.62,36.1531]
[1734125523681,0.535224,223.69,223.62,6.1531]
[1734125524764,20.0,223.67,223.62,6.1531]
[1734125525274,0.535224,223.69,223.62,6.1531]
[1734125526580,0.535224,223.69,223.62,36.1531]
[1734125530886,0.535224,223.69,223.62,6.1531]
[1734125531810,0.535224,223.69,223.63,0.25098]
[1734125531961,0.535224,223.69,223.65,0.12549]
[1734125532290,0.535224,223.69,223.65,0.25098]
[1734125532586,0.535224,223.69,223.66,0.12549]
[1734125532762,0.535224,223.69,223.68,0.25098]
[1734125533359,0.535224,223.69,223.68,1.95317]
[1734125533564,0.535224,223.69,223.68,10.35846998]
[1734125533875,0.535224,223.69,223.68,1.95317]
[1734125535988,11.1691,223.83,223.74,0.12549]
[1734125536164,11.1691,223.83,223.74,0.25098]
[1734125536983,22.3354,223.86,223.74,30.25098]
[1734125537199,22.3354,223.86,223.74,38.65627998]
[1734125537510,11.1656,223.9,223.78,0.12549]
[1734125538068,11.1656,223.9,223.79,0.12549]
[1734125538875,20.0,223.87,223.77,0.12549]
[1734125540992,20.0,223.87,223.8,0.25098]
[1734125541188,11.1656,223.9,223.8,0.25098]
[1734125541781,11.1656,223.9,223.8,30.25098]
[1734125543174,23.776884,223.89,223.8,30.0]
[1734125543603,23.776884,223.89,223.79,1.5543]
[1734125544091,20.0,223.86,223.79,1.5543]
[1734125545077,31.1681,223.86,223.79,1.5543]
[1734125547101,31.1681,223.86,223.75,6.2526]
[1734125547302,20.0,223.82,223.76,30.0]
[1734125547610,20.0,223.82,223.75,6.2526]
[1734125548186,11.1696,223.82,223.75,6.2526]
[1734125551132,20.0,223.79,223.7,6.1525]
[1734125551414,20.0,223.79,223.71,30.0]
[1734125552310,20.0,223.75,223.71,30.0]
[1734125552506,11.1716,223.78,223.7,6.1525]
[1734125554113,11.1716,223.78,223.71,30.0]
[1734125554714,11.1716,223.78,223.72,0.12549]
[1734125557820,11.1716,223.78,223.71,0.25098]
[1734125560309,22.3353,223.86,223.71,0.25098]
[1734125560505,20.0,223.83,223.71,0.25098]
[1734125560710,20.0,223.82,223.71,0.12549]
[1734125561013,20.0,223.82,223.71,30.12549]
[1734125561736,11.1701,223.81,223.71,30.12549]
[1734125562527,11.1701,223.81,223.72,0.12549]
[1734125563608,33.5029,223.86,223.73,0.12549]
[1734125564126,20.0,223.83,223.74,0.12549]
[1734125565627,20.0,223.83,223.75,0.12549]
[1734125569735,11.1696,223.82,223.74,30.0]
[1734125571729,11.1696,223.82,223.75,0.12549]
[1734125572129,11.1696,223.82,223.75,30.12549]
[1734125573220,11.1696,223.82,223.73,0.37647]
[1734125574712,11.1696,223.82,223.75,0.25098]
[1734125575141,20.0,223.83,223.75,0.25098]
[1734125575347,11.1681,223.85,223.75,0.25098]
[1734125575715,11.1681,223.85,223.77,0.12549]
[1734125575915,20.0,223.86,223.77,0.12549]
[1734125576634,20.0,223.86,223.79,0.12549]
[1734125577927,20.0,223.86,223.8,0.12549]
[1734125579026,20.0,223.86,223.79,0.12549]
[1734125579230,20.0,223.86,223.78,0.37647]
[1734125579641,31.1678,223.86,223.77,0.12549]
[1734125580517,31.1678,223.86,223.77,0.25098]
[1734125581449,31.1678,223.86,223.78,0.12549]
[1734125582239,31.1678,223.86,223.79,0.25098]
[1734125585253,31.1678,223.86,223.79,0.12549]
[1734125585447,31.1678,223.86,223.78,0.25098]
[1734125587821,31.1678,223.86,223.78,0.12549]
[1734125588021,31.1678,223.86,223.77,0.25098]
[1734125588235,31.1678,223.86,223.77,30.25098]
[1734125592327,31.1678,223.86,223.77,0.25098]
[1734125593149,31.1678,223.86,223.77,0.12549]
[1734125593336,53.5031,223.86,223.76,6.0478]
[1734125593517,20.0,223.82,223.74,1.6481]
[1734125594534,20.0,223.78,223.74,1.6481]
[1734125595547,20.0,223.81,223.74,1.6481]
[1734125597435,20.0,223.81,223.71,6.3092]
[1734125597746,11.1706,223.8,223.71,6.3092]
[1734125604320,11.1726,223.76,223.71,6.3092]
[1734125604524,11.1726,223.76,223.69,1.5259]
[1734125605536,20.0,223.76,223.69,1.5259]
[1734125606845,11.1731,223.75,223.69,1.5259]
[1734125607048,20.0,223.72,223.66,6.1332]
[1734125608124,20.0,223.76,223.66,6.1332]
[1734125608354,53.5179,223.76,223.66,6.1332]
[1734125611549,31.1726,223.76,223.66,6.1332]
[1734125618452,11.1726,223.76,223.67,0.25098]
[1734125618653,11.1726,223.76,223.69,0.12549]
[1734125619763,22.343,223.79,223.69,0.12549]
[1734125622144,22.343,223.79,223.69,30.12549]
[1734125623960,22.343,223.79,223.69,30.0]
[1734125624370,23.776884,223.78,223.69,30.0]
[1734125624564,22.343,223.79,223.69,30.0]
[1734125625283,22.343,223.79,223.68,1.5004]
[1734125626148,11.1731,223.75,223.68,1.5004]
[1734125627554,20.0,223.75,223.68,1.5004]
[1734125628159,20.0,223.76,223.68,1.5004]
[1734125628670,20.0,223.72,223.68,1.5004]
[1734125629771,57.293284,223.77,223.68,1.5004]
[1734125629956,20.0,223.74,223.68,1.5004]
[1734125630159,20.0,223.74,223.66,6.1332]
[1734125631048,11.1741,223.73,223.66,6.1332]
[1734125631248,11.1741,223.73,223.63,1.5258]
[1734125631249,20.0,223.7,223.63,1.5258]
[1734125632656,20.0,223.66,223.63,1.5258]
[1734125633766,20.0,223.7,223.63,1.5258]
[1734125633968,20.0,223.69,223.63,1.5258]
[1734125634752,20.0,223.68,223.63,1.5258]
[1734125635175,11.1751,223.71,223.63,1.5258]
[1734125635972,20.0,223.7,223.63,1.5258]
[1734125636658,20.0,223.73,223.63,1.5258]
[1734125637373,20.0,223.74,223.63,1.5258]
[1734125637577,20.0,223.73,223.63,1.5258]
[1734125639282,20.0,223.74,223.63,1.5258]
[1734125639475,20.0,223.73,223.63,1.5258]
[1734125640961,11.1746,223.72,223.64,0.25098]
[1734125641161,11.1746,223.72,223.65,6.5342]
[1734125642052,11.1721,223.77,223.65,6.5342]
[1734125646689,11.1721,223.77,223.67,1.6306]
[1734125647684,20.0,223.77,223.67,1.6306]
[1734125648095,20.0,223.77,223.67,31.6306]
[1734125648658,11.1726,223.77,223.67,31.6306]
[1734125651196,0.12549,223.8,223.69,6.3389]
[1734125651197,11.1706,223.8,223.69,6.3389]
[1734125652774,11.1706,223.8,223.69,36.3389]
[1734125653195,11.1706,223.8,223.69,6.3389]
[1734125656194,11.1706,223.8,223.69,36.3389]
[1734125658393,11.1706,223.8,223.7,0.12549]
[1734125661673,20.0,223.77,223.69,36.3389]
[1734125661874,20.0,223.75,223.69,36.3389]
[1734125662411,20.0,223.75,223.69,6.3389]
[1734125662793,11.1736,223.74,223.69,6.3389]
[1734125663296,20.0,223.71,223.69,6.3389]
[1734125664112,31.1753,223.71,223.69,6.3389]
[1734125664602,31.1753,223.71,223.67,1.6306]
[1734125669790,31.1753,223.71,223.63,6.4942]
[1734125680515,20.0,223.7,223.63,6.4942]
[1734125680997,11.1753,223.71,223.63,6.4942]
[1734125684800,11.1753,223.71,223.62,1.5885]
[1734125685020,20.0,223.68,223.58,6.3709]
[1734125685199,20.0,223.68,223.59,30.0]
[1734125685522,20.0,223.68,223.58,6.3709]
[1734125685930,11.1771,223.67,223.58,6.3709]
[1734125688420,20.0,223.64,223.58,6.3709]
[1734125688924,20.0,223.64,223.56,1.6422]
[1734125690015,11.1771,223.67,223.56,10.04749998]
[1734125690407,11.1771,223.67,223.57,30.0]
[1734125690811,31.30109,223.7,223.57,30.0]
[1734125691415,11.1756,223.7,223.59,6.3878]
[1734125691832,22.3487,223.73,223.59,6.3878]
[1734125692147,33.5228,223.73,223.59,6.3878]
[1734125693015,11.1761,223.69,223.6,30.0]
[1734125694608,11.1761,223.69,223.59,6.3878]
[1734125696407,11.1761,223.69,223.6,30.0]
[1734125703948,11.1747,223.72,223.61,0.12549]
[1734125704125,11.1747,223.72,223.61,30.12549]
[1734125705335,31.1731,223.75,223.61,30.12549]
[1734125707551,11.1731,223.75,223.63,24.027864]
[1734125707715,11.1731,223.75,223.65,0.12549]
[1734125708618,33.63889,223.79,223.64,6.1855]
[1734125708814,33.63889,223.79,223.65,30.0]
[1734125709038,0.12549,223.77,223.65,30.0]
[1734125709344,20.0,223.75,223.65,30.0]
[1734125709765,20.0,223.75,223.64,6.1855]
[1734125709939,11.1736,223.74,223.64,6.1855]
[1734125710762,11.1736,223.74,223.65,30.0]
[1734125712162,11.1736,223.74,223.64,6.1855]
[1734125715643,20.0,223.71,223.64,6.1855]
[1734125718758,11.1736,223.74,223.64,6.1855]
[1734125720863,11.1721,223.77,223.65,0.12549]
[1734125721077,20.0,223.74,223.65,30.12549]
[1734125722149,31.1737,223.74,223.65,30.0]
[1734125723664,31.1737,223.74,223.64,6.1855]
[1734125731279,31.1737,223.74,223.65,0.12549]
[1734125734774,31.1737,223.74,223.64,6.1855]
[1734125735880,20.0,223.73,223.62,1.5039]
[1734125736080,11.1737,223.74,223.64,8.40529998]
[1734125736257,11.1737,223.74,223.66,0.12549]
[1734125737186,20.0,223.76,223.66,0.12549]
[1734125737370,20.0,223.76,223.66,30.12549]
[1734125740800,33.5134,223.79,223.66,30.12549]
[1734125742695,33.5134,223.79,223.66,36.27409]
[1734125742896,11.1711,223.79,223.68,0.12549]
[1734125743099,11.1711,223.79,223.68,30.12549]
[1734125743402,11.1711,223.79,223.68,38.53078998]
[1734125744588,11.1711,223.79,223.7,0.12549]
[1734125744782,11.1711,223.79,223.7,30.12549]
[1734125746099,7.8864,223.87,223.72,0.12549]
[1734125746100,11.1676,223.86,223.72,0.12549]
[1734125747104,11.1676,223.86,223.72,30.12549]
[1734125747292,11.1696,223.82,223.72,30.12549]
[1734125750904,11.1696,223.82,223.71,0.12549]
[1734125751284,11.1696,223.82,223.73,0.12549]
[1734125753984,11.1696,223.82,223.73,30.12549]
[1734125757507,11.1696,223.82,223.73,0.12549]
[1734125760507,11.1696,223.82,223.73,30.12549]
[1734125761010,11.1676,223.86,223.76,1.6663]
[1734125761308,11.1676,223.86,223.77,15.09498998]
[1734125761603,11.1662,223.89,223.79,8.53078998]
[1734125762586,11.1662,223.89,223.79,38.53078998]
[1734125762802,11.1662,223.89,223.81,0.12549]
[1734125763502,11.1662,223.89,223.81,30.12549]
[1734125766194,11.1662,223.89,223.81,0.12549]
[1734125769084,11.1662,223.89,223.8,0.12549]
[1734125770008,11.1662,223.89,223.8,30.12549]
[1734125770400,11.1662,223.89,223.8,38.53078998]
[1734125771293,11.1662,223.89,223.8,30.12549]
[1734125771708,11.1662,223.89,223.82,0.12549]
[1734125776009,11.1662,223.89,223.8,30.0]
[1734125778610,11.1681,223.85,223.73,8.40529998]
[1734125782924,20.0,223.82,223.71,8.40529998]
[1734125783409,11.1681,223.85,223.72,8.40529998]
[1734125783609,11.1681,223.85,223.73,8.40529998]
[1734125783811,11.1681,223.85,223.74,8.40529998]
[1734125784016,20.0,223.87,223.74,8.40529998]
[1734125785333,20.0,223.88,223.74,8.40529998]
[1734125785544,20.0,223.87,223.74,8.40529998]
[1734125786346,20.0,223.87,223.78,23.902374]
[1734125787629,20.0,223.87,223.79,0.12549]
[1734125788014,20.0,223.83,223.76,1.6663]
[1734125788268,20.0,223.83,223.78,30.0]
[1734125789420,31.1694,223.83,223.76,1.6663]
[1734125802258,4.07351365,223.91,223.8,32.43316398]
[1734125802429,0.535224,223.92,223.8,32.43316398]
[1734125803151,11.1652,223.91,223.8,32.43316398]
[1734125803461,11.1652,223.91,223.82,23.902374]
[1734125803630,11.1652,223.91,223.82,32.30767398]
[1734125804249,11.1652,223.91,223.82,62.30767398]
[1734125805143,11.1652,223.91,223.82,53.902374]
[1734125808146,11.1652,223.91,223.83,0.12549]
[1734125808344,11.1652,223.91,223.84,23.902374]
[1734125808961,11.1652,223.91,223.84,60.024474]
[1734125810354,11.1652,223.91,223.84,59.898984]
[1734125811357,0.535224,223.92,223.84,59.898984]
[1734125813450,0.535224,223.92,223.84,29.898984]
[1734125814133,0.535224,223.92,223.85,0.12549]
[1734125814457,0.535224,223.92,223.85,0.25098]
[1734125815456,0.535224,223.92,223.86,32.18218398]
[1734125816334,0.535224,223.92,223.86,62.18218398]
[1734125818734,0.535224,223.92,223.86,53.776884]
[1734125819658,0.535224,223.92,223.85,24.027864]
[1734125821446,0.535224,223.92,223.85,32.43316398]
[1734125822778,0.535224,223.92,223.87,24.027864]
[1734125823285,0.535224,223.92,223.87,32.43316398]
[1734125823585,0.535224,223.92,223.87,24.027864]
[1734125823786,0.535224,223.92,223.87,54.027864]
[1734125825483,0.535224,223.92,223.87,62.43316398]
[1734125826290,0.535224,223.92,223.89,24.027864]
[1734125826579,0.535224,223.92,223.89,54.027864]
[1734125828747,0.535224,223.92,223.89,30.0]
[1734125828975,0.535224,223.92,223.78,23.54139116]
[1734125829271,0.535224,223.92,223.82,30.0]
[1734125829682,11.700324,223.92,223.82,38.40529998]
[1734125830601,11.700324,223.92,223.82,30.0]
[1734125832374,11.700324,223.92,223.81,30.0]
[1734125839771,0.535224,223.92,223.85,8.40529998]
[1734125839976,0.535224,223.92,223.86,23.776884]
[1734125840292,0.535224,223.92,223.86,32.18218398]
[1734125841902,0.535224,223.92,223.87,30.0]
[1734125843406,0.535224,223.92,223.86,23.776884]
[1734125845108,0.535224,223.92,223.87,30.0]
[1734125845487,0.535224,223.92,223.88,32.18218398]
[1734125848292,0.535224,223.92,223.9,23.776884]
[1734125848510,0.535224,223.92,223.91,23.776884]
[1734125849988,0.535224,223.92,223.91,53.776884]
[1734125853209,0.535224,223.92,223.9,23.902374]
[1734125854786,0.535224,223.92,223.91,8.65627998]
[1734125855020,0.535224,223.92,223.9,23.776884]
[1734125856090,0.535224,223.92,223.91,30.0]
[1734125856816,0.535224,223.92,223.91,62.55865398]
[1734125857612,0.535224,223.92,223.91,63.22826738]
[1734125859406,0.535224,223.92,223.91,62.43316398]
[1734125859612,0.535224,223.92,223.91,54.027864]
[1734125862930,0.535224,223.92,223.91,53.776884]
[1734125863135,0.535224,223.92,223.91,30.0]
[1734125864714,0.535224,223.92,223.88,23.776884]
[1734125864912,0.535224,223.92,223.87,23.902374]
[1734125865227,0.535224,223.92,223.88,30.0]
[1734125868036,0.535224,223.92,223.85,30.0]
[1734125871543,0.535224,223.92,223.84,30.0]
[1734125872641,0.535224,223.92,223.87,8.40529998]
[1734125873639,0.535224,223.92,223.88,30.0]
[1734125879453,0.535224,223.92,223.91,0.12549]
[1734125879658,0.535224,223.92,223.91,32.43316398]
[1734125880565,0.535224,223.92,223.91,62.43316398]
[1734125881061,0.535224,223.92,223.91,32.43316398]
[1734125883451,0.535224,223.92,223.91,62.55865398]
[1734125884168,0.535224,223.92,223.91,92.55865398]
[1734125885159,0.535224,223.92,223.91,92.43316398]
[1734125885335,0.535224,223.92,223.91,62.43316398]
[1734125885538,0.535224,223.92,223.91,54.027864]
[1734125885763,0.535224,223.92,223.91,62.43316398]
[1734125886263,0.535224,223.92,223.91,30.0]
[1734125890154,0.535224,223.92,223.88,23.776884]
[1734125890363,0.535224,223.92,223.89,30.0]
[1734125891280,0.535224,223.92,223.91,8.40529998]
[1734125891467,0.535224,223.92,223.89,30.0]
[1734125897964,0.535224,223.92,223.89,38.40529998]
[1734125899093,0.535224,223.92,223.89,38.53904752]
[1734125900383,0.535224,223.92,223.89,30.13374754]
[1734125901383,0.535224,223.92,223.89,0.13374754]
[1734125904463,0.535224,223.92,223.89,30.13374754]
[1734125904663,20.535224,223.92,223.89,30.13374754]
[1734125905775,0.535224,223.92,223.89,0.13374754]
[1734125912790,0.535224,223.92,223.89,8.53904752]
[1734125912990,0.535224,223.92,223.9,8.40529998]
[1734125915981,0.535224,223.92,223.89,8.53904752]
[1734125916287,0.535224,223.92,223.9,30.0]
[1734125919200,0.535224,223.92,223.89,0.13374754]
[1734125922681,0.535224,223.92,223.89,23.91063154]
[1734125924327,0.535224,223.92,223.9,30.0]
[1734125927822,0.535224,223.92,223.89,0.13374754]
[1734125930955,0.535224,223.92,223.89,30.13374754]
[1734125933702,0.535224,223.92,223.89,0.13374754]
[1734125946934,0.535224,223.92,223.89,30.13374754]
[1734125952642,0.535224,223.92,223.89,38.53904752]
[1734125953044,0.535224,223.92,223.91,32.43316398]
[1734125953220,0.535224,223.92,223.91,32.55865398]
[1734125954320,0.535224,223.92,223.91,62.55865398]
[1734125956835,0.535224,223.92,223.91,63.22828619]
[1734125960049,0.535224,223.92,223.91,62.55865398]
[1734125962437,0.535224,223.92,223.91,32.55865398]
[1734125964542,0.535224,223.92,223.91,0.25098]
[1734125964744,0.535224,223.92,223.91,24.027864]
[1734125965245,0.535224,223.92,223.91,0.25098]
[1734125966243,0.535224,223.92,223.91,30.25098]
[1734125966445,0.535224,223.92,223.91,54.027864]
[1734125967358,0.535224,223.92,223.91,30.0]
[1734125968470,0.535224,223.92,223.9,8.40529998]
[1734125968760,0.535224,223.92,223.91,23.776884]
[1734125969143,0.535224,223.92,223.91,53.776884]
[1734125975369,0.535224,223.92,223.91,30.0]
[1734125976774,0.535224,223.92,223.89,0.13374754]
[1734125977273,0.535224,223.92,223.89,30.13374754]
[1734125986373,0.535224,223.92,223.91,8.40529998]
[1734125986575,0.535224,223.92,223.91,93.22832471]
[1734125986780,0.535224,223.92,223.91,92.55865398]
[1734126002195,0.535224,223.92,223.91,62.55865398]
[1734126002402,0.535224,223.92,223.91,65.25301436]
[1734126004298,0.535224,223.92,223.91,95.25301436]
[1734126005094,0.535224,223.92,223.91,86.84771438]
[1734126005395,0.535224,223.92,223.91,95.92259819]
[1734126005576,0.535224,223.92,223.91,95.25301436]
[1734126006087,0.535224,223.92,223.91,62.55865398]
[1734126006291,0.535224,223.92,223.91,30.0]
[1734126011176,0.535224,223.92,223.87,9.90105689]
[1734126011377,0.535224,223.92,223.89,30.0]
[1734126019205,0.40147646,223.92,223.89,30.0]
[1734126030594,0.40147646,223.92,223.88,30.0]
[1734126042229,0.40147646,223.92,223.87,9.90105689]
[1734126045423,0.40147646,223.92,223.88,30.0]
[1734126051213,0.40147646,223.92,223.87,9.90105689]
[1734126091780,0.40147646,223.92,223.83,6.98929118]
[1734126091954,0.40147646,223.92,223.84,30.0]
[1734126098753,0.40147646,223.92,223.87,8.40529998]
[1734126098941,0.40147646,223.92,223.85,56.44702218]
[1734126098942,0.40147646,223.92,223.89,8.40529998]
[1734126100876,0.40147646,223.92,223.9,30.0]
[1734126112556,0.40147646,223.92,223.91,32.55865398]
[1734126112877,0.40147646,223.92,223.91,92.55865398]
[1734126113059,0.40147646,223.92,223.91,53.902374]
[1734126113378,0.40147646,223.92,223.91,30.0]
[1734126122580,0.40147646,223.92,223.85,32.84064233]
[1734126122884,0.40147646,223.92,223.86,30.0]
[1734126123282,0.40147646,223.92,223.86,38.40529998]
[1734126123684,0.40147646,223.92,223.87,8.40529998]
[1734126123900,0.40147646,223.92,223.86,18.91193608]
[1734126125593,0.40147646,223.92,223.87,30.0]
[1734126135509,0.40147646,223.92,223.86,10.5066361]
[1734126149201,0.40147646,223.92,223.8,14.46591778]
[1734126149512,0.40147646,223.92,223.81,30.0]